lending/lending_fUSD_20240208
["ID","MTS","AMOUNT","RATE_DAILY","PERIOD"]
[313444270,1707350604581,-1065.29930835,0.00024254,2]
[313444271,1707350604601,-639.80038613,0.00024254,2]
[313444272,1707350604621,-191.68223761,0.00024254,2]
[313444273,1707350604641,-167.0,0.00024255,2]
[313444274,1707350604661,-413.81083039,0.00024776,2]
[313444275,1707350604681,-699.93542957,0.00024777,2]
[313444276,1707350604701,-224.0440687,0.00024778,2]
[313444277,1707350604722,-158.93830664,0.00024779,2]
[313444278,1707350604742,-1439.48943261,0.00024875,2]
[313444279,1707350606971,-1805.3855674,0.00024875,2]
[313444280,1707350606993,-150.9385784,0.00024998,2]
[313444281,1707350607013,-150.9385784,0.00024998,2]
[313444282,1707350607033,-150.9385784,0.00024998,2]
[313444283,1707350607054,-167.0,0.0002559,2]
[313444284,1707350607074,-2479.4679567,0.00026395,2]
[313444285,1707350607094,-150.0,0.00026395,2]
[313444286,1707350607114,-150.0,0.00026395,2]
[313444287,1707350607135,-4605.04658755,0.00026396,2]
[313444288,1707350607158,-5195.84305317,0.00026398,2]
[313444289,1707350607180,-84359.72707175,0.00026399,2]
[313444290,1707350607201,-4559.28,0.00026399,2]
[313444291,1707350607223,-701.57,0.00026399,2]
[313444292,1707350607245,-4518.2,0.00026399,2]
[313444293,1707350607266,-4938.07,0.00026399,2]
[313444294,1707350607289,-6572.68490367,0.000264,2]
[313444295,1707350607309,-499.99,0.000264,2]
[313444296,1707350607329,-326.76,0.000264,2]
[313444297,1707350607349,-4366.16,0.000264,2]
[313444298,1707350608059,438.5439,0.00024781,2]
[313444299,1707350662904,159.95601987,0.00026268,15]
[313444300,1707350687085,350.0,0.00025,3]
[313444301,1707350743203,-167.0,0.00026924,2]
[313444302,1707350743225,-400.0,0.00027,3]
[313444303,1707350743246,-639.80038613,0.00027862,2]
[313444304,1707350743266,-800.0,0.00027863,2]
[313444305,1707350743288,-158.93830659,0.00027877,2]
[313444306,1707350743308,-167.0,0.00028259,2]
[313444307,1707350743329,-450.0,0.00029,3]
[313444308,1707350743350,-210.0,0.00029035,2]
[313444309,1707350743371,-210.0,0.00029035,2]
[313444310,1707350743391,-800.0,0.00029973,2]
[313444311,1707350743412,-156.45469851,0.00029998,2]
[313444312,1707350743432,-257.12760374,0.00029998,2]
[313444313,1707350743454,-394.88774528,0.00029999,2]
[313444314,1707350743476,-335.41688315,0.00029999,2]
[313444315,1707350743496,-1004.87358129,0.00029999,2]
[313444316,1707350784340,250.0,0.00023549,2]
[313444317,1707350843262,-152.16475739,0.00029969,2]
[313444318,1707350843283,-364.59980457,0.00029998,2]
[313444319,1707350843302,-109.87155051,0.00029999,2]
[313444320,1707350843322,-191.28237464,0.00029999,2]
[313444321,1707350843342,-173.28155267,0.0003,4]
[313444322,1707350843363,-26.20614591,0.0003,4]
[313444323,1707350958077,-130.31688791,0.0003,4]
[313444324,1707350958097,-1583.0651044,0.0003,4]
[313444325,1707350958117,-5862.35358759,0.0003,4]
[313444326,1707350958135,-299.98823914,0.0003,4]
[313444327,1707350958154,-87842.99561457,0.0003,4]
[313444328,1707350958173,-161.43765131,0.0003,4]
[313444329,1707350958194,-358.1,0.00030031,2]
[313444330,1707350958214,-158.93830659,0.00030974,2]
[313444331,1707350958234,-500.0,0.00031,3]
[313444332,1707350958258,-150.0,0.00031122,2]
[313444333,1707350958283,-540.94,0.00031568,2]
[313444337,1707350965117,-2000.0,0.00031788,2]
[313444338,1707350965137,-250.0,0.00031828,2]
[313444339,1707350965157,-250.0,0.00031828,2]
[313444340,1707350965177,-176.52,0.0003183,2]
[313444341,1707350965199,-1497.22,0.00031983,2]
[313444342,1707350965224,-2588.12,0.00031985,2]
[313444343,1707350965246,-691.55,0.00032049,2]
[313444344,1707350965267,-500.0,0.00032082,2]
[313444345,1707350965290,-153.76,0.00032148,2]
[313444346,1707350965312,-358.1,0.00032295,2]
[313444347,1707350965333,-153.76,0.00032357,2]
[313444348,1707350965355,-153.76,0.00032566,2]
[313444349,1707350965377,-153.76,0.00032776,2]
[313444350,1707350965397,-854.48,0.00032833,2]
[313444351,1707350965419,-153.76,0.00032985,2]
[313444352,1707350965440,-550.0,0.00033,3]
[313444353,1707350965461,-153.76,0.00033195,2]
[313444354,1707350965481,-167.09,0.00033295,2]
[313444355,1707350965501,-300.0,0.00033334,2]
[313444356,1707350965520,-153.76,0.00033404,2]
[313444357,1707350965542,-1736.11064512,0.00033464,28]
[313444358,1707350965561,-363.54770834,0.0003349,2]
[313444359,1707350965581,-164.72211673,0.00033498,2]
[313444360,1707350965601,-43981.06637108,0.000335,2]
[313444361,1707350971125,-5791.76,0.000335,2]
[313444362,1707350978510,156.06884405,0.0003,4]
[313444377,1707351032789,-831.66345468,0.000335,2]
[313444379,1707351032802,-502.50678473,0.000335,2]
[313444381,1707351032815,-1073.34824939,0.000335,2]
[313444382,1707351032829,-5703.62625355,0.000335,2]
[313444383,1707351032856,-364.28267879,0.000335,2]
[313444384,1707351032869,-10603.17810994,0.000335,2]
[313444385,1707351032881,-1095.04735849,0.000335,2]
[313444386,1707351032893,-654.05925543,0.000335,2]
[313444387,1707351032917,-2491.54823111,0.000335,2]
[313444388,1707351032929,-2105.34121199,0.000335,2]
[313444389,1707351032941,-2448.92219927,0.000335,2]
[313444390,1707351033100,-0.01901158,0.000335,2]
[313444391,1707351033113,-180767.1092145,0.000335,2]
[313444392,1707351033182,-579.59745,0.000335,2]
[313444393,1707351033210,-14726.5222613,0.000335,2]
[313444394,1707351033402,-1894.52100381,0.000335,2]
[313444395,1707351033459,-562.34159793,0.000335,2]
[313444396,1707351033472,-910.41044073,0.000335,2]
[313444397,1707351033485,-382.0077164,0.000335,2]
[313444401,1707351038352,-1779.78511074,0.000335,2]
[313444402,1707351038490,-729.20431587,0.000335,2]
[313444403,1707351038504,-741.27723955,0.000335,2]
[313444404,1707351038518,-420.8888349,0.000335,2]
[313444405,1707351038531,-313.89851893,0.000335,2]
[313444406,1707351038625,-444.2367,0.000335,2]
[313444407,1707351038638,-17842.03477895,0.000335,2]
[313444408,1707351038662,-13339.10696404,0.000335,2]
[313444410,1707351038689,-5639.87380569,0.000335,2]
[313444430,1707351041971,-0.88305276,0.000335,2]
[313444431,1707351042054,-13712.72926499,0.000335,2]
[313444434,1707351043440,-156.45061143,0.00033499,4]
[313444435,1707351043452,-678.59930484,0.000335,2]
[313444436,1707351043466,-378.37423444,0.000335,2]
[313444437,1707351043481,-2221.82731439,0.000335,2]
[313444438,1707351043506,-17755.798,0.000335,2]
[313444439,1707351043735,-2366.8574664,0.000335,2]
[313444440,1707351043750,-2702.97476548,0.000335,2]
[313444441,1707351043792,-651.06340159,0.000335,2]
[313444442,1707351043807,-910.50949508,0.000335,2]
[313444443,1707351043832,-2157.858028,0.000335,2]
[313444444,1707351043846,-279.20136684,0.000335,2]
[313444448,1707351043892,-10679.120511,0.000335,2]
[313444456,1707351046357,-155.0,0.00033499,4]
[313444457,1707351046366,-1070.3857305,0.00033499,4]
[313444458,1707351046376,-42446.30303188,0.000335,2]
[313444459,1707351046401,-4435.5,0.000335,2]
[313444460,1707351046413,-280.27417697,0.000335,2]
[313444461,1707351046424,-379.24221432,0.000335,2]
[313444462,1707351046452,-34227.08761719,0.000335,2]
[313444463,1707351046465,-6895.33541699,0.000335,2]
[313444464,1707351046478,-297.01745188,0.000335,2]
[313444465,1707351046504,-537.4350766,0.000335,2]
[313444466,1707351046516,-2015.83711954,0.000335,2]
[313444467,1707351046528,-6350.98677237,0.000335,2]
[313444468,1707351046540,-25843.61229966,0.000335,2]
[313444469,1707351046549,-180.80634641,0.00033513,6]
[313444470,1707351046558,-153.76,0.00033613,2]
[313444471,1707351046567,-1497.22,0.00033627,2]
[313444472,1707351046576,-152.65,0.000337,2]
[313444473,1707351046585,-152.65,0.000337,2]
[313444474,1707351046594,-152.65,0.000337,2]
[313444475,1707351046603,-152.65,0.000337,2]
[313444476,1707351046612,-152.65,0.000337,2]
[313444477,1707351046621,-152.65,0.000337,2]
[313444478,1707351046630,-152.65,0.000337,2]
[313444479,1707351046639,-152.65,0.000337,2]
[313444480,1707351046648,-152.65,0.000337,2]
[313444481,1707351046657,-152.65,0.000337,2]
[313444482,1707351046666,-152.65,0.000337,2]
[313444483,1707351046676,-152.65,0.000337,2]
[313444484,1707351046685,-686.40627154,0.00033799,4]
[313444485,1707351046694,-510.30645593,0.000338,4]
[313444486,1707351046703,-3858.05357045,0.000338,2]
[313444487,1707351046715,-9382.46608405,0.000338,2]
[313444488,1707351046724,-153.76,0.00033823,2]
[313444489,1707351046734,-200.0,0.000339,12]
[313444490,1707351046743,-158.93830659,0.00034072,2]
[313444491,1707351046753,-166.86,0.0003439,2]
[313444492,1707351046762,-358.1,0.00034559,2]
[313444493,1707351046772,-300.0,0.00034704,2]
[313444494,1707351046781,-1134.48984904,0.00034857,10]
[313444495,1707351046791,-666.39792995,0.00034857,10]
[313444496,1707351046800,-759.01341284,0.000349,2]
[313444497,1707351046810,-150.0,0.000349,2]
[313444498,1707351046820,-600.0,0.00035,3]
[313444499,1707351046829,-220.51049117,0.00035,2]
[313444500,1707351046839,-220.51049117,0.00035,2]
[313444501,1707351046848,-220.51049117,0.00035,2]
[313444502,1707351046857,-220.51049117,0.00035,2]
[313444503,1707351046866,-220.51049117,0.00035,2]
[313444504,1707351046876,-220.51049117,0.00035,2]
[313444505,1707351046885,-220.51049117,0.00035,2]
[313444506,1707351046895,-220.51049117,0.00035,2]
[313444507,1707351046905,-187.17269059,0.00035,2]
[313444508,1707351046966,-33.33780058,0.00035,2]
[313444509,1707351046975,-220.51049117,0.00035,2]
[313444510,1707351046984,-220.51049117,0.00035,2]
[313444511,1707351046993,-220.51049117,0.00035,2]
[313444512,1707351047002,-220.51049117,0.00035,2]
[313444513,1707351047013,-220.51049117,0.00035,2]
[313444514,1707351047022,-220.51049117,0.00035,2]
[313444515,1707351047032,-220.51049117,0.00035,2]
[313444516,1707351047043,-220.51049117,0.00035,2]
[313444517,1707351047052,-220.51049117,0.00035,2]
[313444518,1707351047062,-220.51049117,0.00035,2]
[313444519,1707351047071,-220.51049117,0.00035,2]
[313444520,1707351047081,-220.51049117,0.00035,2]
[313444521,1707351047090,-220.51049117,0.00035,2]
[313444522,1707351047099,-220.51049117,0.00035,2]
[313444523,1707351047109,-220.51049117,0.00035,2]
[313444524,1707351047118,-220.51049117,0.00035,2]
[313444525,1707351047127,-220.51049117,0.00035,2]
[313444526,1707351047138,-220.51049117,0.00035,2]
[313444527,1707351047147,-220.51049117,0.00035,2]
[313444528,1707351047157,-220.51049117,0.00035,2]
[313444529,1707351047167,-220.51049117,0.00035,2]
[313444530,1707351047176,-220.51049117,0.00035,2]
[313444531,1707351047185,-220.51049117,0.00035,2]
[313444532,1707351047194,-220.51049117,0.00035,2]
[313444533,1707351047203,-220.51049117,0.00035,2]
[313444534,1707351047213,-220.51049117,0.00035,2]
[313444535,1707351047222,-220.51049117,0.00035,2]
[313444536,1707351047231,-220.51049117,0.00035,2]
[313444537,1707351047241,-220.51049117,0.00035,2]
[313444538,1707351047250,-220.51049117,0.00035,2]
[313444539,1707351047259,-220.51049117,0.00035,2]
[313444540,1707351047268,-220.51049117,0.00035,2]
[313444541,1707351047277,-220.51049117,0.00035,2]
[313444542,1707351047286,-220.51049117,0.00035,2]
[313444543,1707351047296,-220.51049117,0.00035,2]
[313444544,1707351047305,-220.51049117,0.00035,2]
[313444545,1707351047314,-220.51049117,0.00035,2]
[313444546,1707351047323,-220.51049117,0.00035,2]
[313444547,1707351047332,-220.51049117,0.00035,2]
[313444548,1707351047342,-220.51049117,0.00035,2]
[313444549,1707351047351,-220.51049117,0.00035,2]
[313444550,1707351047360,-759.01341267,0.00035092,2]
[313444551,1707351047369,-181.36,0.00035096,2]
[313444552,1707351047378,-1262.05852995,0.00035099,6]
[313444553,1707351047387,-2232.91773839,0.00035099,6]
[313444554,1707351047397,-1497.22,0.00035271,2]
[313444555,1707351047406,-540.94,0.00035514,2]
[313444556,1707351047416,-626.23,0.00035657,2]
[313444557,1707351047425,-157.01813371,0.00035891,4]
[313444558,1707351047434,-232.57734005,0.0003591,5]
[313444559,1707351047444,-181.36,0.00036338,2]
[313444560,1707351047454,-759.01341267,0.00036671,2]
[313444561,1707351047463,-358.1,0.00036823,2]
[313444562,1707351047472,-500.0,0.000369,2]
[313444563,1707351047481,-1497.22,0.00036914,2]
[313444564,1707351047490,-854.48,0.00036937,2]
[313444565,1707351047499,-650.0,0.00037,3]
[313444566,1707351047508,-158.93830659,0.0003717,2]
[313444567,1707351047517,-181.36,0.00037579,2]
[313444568,1707351047526,-153.18913579,0.000378,2]
[313444569,1707351047536,-152.65,0.000378,3]
[313444570,1707351047547,-152.65,0.000378,3]
[313444571,1707351047556,-152.65,0.000378,3]
[313444572,1707351047566,-152.65,0.000378,3]
[313444573,1707351047575,-152.65,0.000378,3]
[313444574,1707351047585,-152.65,0.000378,3]
[313444575,1707351047594,-152.65,0.000378,3]
[313444576,1707351047603,-152.65,0.000378,3]
[313444577,1707351047612,-152.65,0.000378,3]
[313444578,1707351047621,-152.65,0.000378,3]
[313444579,1707351047631,-152.65,0.000378,3]
[313444580,1707351047640,-152.65,0.000378,3]
[313444581,1707351047649,-242.36513889,0.0003787,2]
[313444582,1707351047658,-176930.20612171,0.0003788,2]
[313444583,1707351047667,-500.0,0.000379,13]
[313444584,1707351047676,-848.92884819,0.000379,2]
[313444585,1707351047697,-1525.90815294,0.000379,2]
[313444586,1707351047708,-544.65751123,0.000379,2]
[313444587,1707351047720,-4436.8,0.000379,2]
[313444588,1707351047739,-1821.66763034,0.000379,2]
[313444589,1707351047750,-1630.30079944,0.000379,2]
[313444590,1707351047762,-3193.20702111,0.000379,2]
[313444591,1707351047863,-18810.23694191,0.000379,2]
[313444592,1707351047875,-259.47592485,0.000379,2]
[313444593,1707351048994,248.43740853,0.0003,4]
[313444598,1707352054134,-522.12830161,0.00030134,4]
[313444599,1707352054154,-859.61664163,0.00030134,4]
[313444600,1707352054174,-155.0,0.00030134,4]
[313444601,1707352054195,-155.0,0.00030134,4]
[313444602,1707352054216,-941.58091816,0.00030135,4]
[313444603,1707352054237,-398.6658791,0.00030136,4]
[313444604,1707352054257,-155.0,0.00030136,4]
[313444605,1707352054276,-379.65541585,0.00030137,4]
[313444606,1707352054296,-409.36,0.00030138,2]
[313444607,1707352054320,-155.0,0.0003048,4]
[313444608,1707352054340,-756.85744404,0.000305,2]
[313444609,1707352054359,-250.0,0.00031976,2]
[313444610,1707352054378,-300.0,0.00032014,3]
[313444611,1707352054399,-150.0,0.00032014,3]
[313444612,1707352054419,-686.28,0.00032015,2]
[313444613,1707352054439,-250.0,0.00032015,2]
[313444614,1707352054459,-338.43,0.0003213,2]
[313444615,1707352054478,-1000.0,0.0003216,2]
[313444616,1707352054498,-345.77,0.00032196,2]
[313444617,1707352054517,-150.0,0.00032297,2]
[313444618,1707352054536,-250.0,0.000323,2]
[313444619,1707352054556,-1793.83,0.00032335,2]
[313444620,1707352054577,-156.4,0.00032338,2]
[313444621,1707352054597,-166.88,0.00032392,2]
[313444622,1707352054617,-409.36,0.00032402,2]
[313444623,1707352054636,-176.52,0.0003265,2]
[313444624,1707352054655,-499.99,0.00032848,2]
[313444625,1707352054678,-157.64196967,0.00033045,2]
[313444626,1707352054698,-223.58216126,0.00033061,4]
[313444627,1707352054718,-156.4,0.0003318,2]
[313444628,1707352054736,-172.05497837,0.00033297,4]
[313444629,1707352054756,-12259.33440676,0.00033298,2]
[313444630,1707352120223,576.48,0.00024384,2]
[313444633,1707352168181,-859.61664163,0.00033169,4]
[313444634,1707352168204,-155.0,0.0003317,4]
[313444635,1707352168225,-171.12,0.00033171,2]
[313444636,1707352168246,-155.31861112,0.00033297,4]
[313444637,1707352168268,-184.65065531,0.00033297,4]
[313444638,1707352168287,-207.87016357,0.00033297,4]
[313444639,1707352168312,-82.38782837,0.00033297,4]
[313444640,1707352173175,-72.61217163,0.00033297,4]
[313444641,1707352173196,-155.0,0.00033297,4]
[313444642,1707352173217,-193.55966482,0.00033297,4]
[313444643,1707352173242,-258.54993897,0.00033297,4]
[313444644,1707352173266,-458.89959714,0.00033297,4]
[313444645,1707352173287,-11027.8517,0.00033297,2]
[313444646,1707352173309,-201.3656,0.00033298,2]
[313444647,1707352173330,-21229.6261,0.00033299,2]
[313444648,1707352173351,-191.2697,0.000333,2]
[313444649,1707352173372,-216.33641666,0.000333,2]
[313444651,1707352214716,-199.77264493,0.00033298,4]
[313444652,1707352214738,-161.81736275,0.00033299,4]
[313444653,1707352214759,-724.67028334,0.000333,2]
[313444654,1707352214780,-243.39486812,0.00033378,4]
[313444655,1707352214801,-497.18487823,0.00033378,4]
[313444656,1707352214821,-927.22044188,0.00033395,2]
[313444657,1707352214845,-512.16059489,0.00033395,4]
[313444658,1707352214865,-549.66,0.00033395,2]
[313444659,1707352214885,-578.38,0.00033395,2]
[313444660,1707352214905,-13839.25892586,0.00033397,4]
[313444671,1707352231513,-3794.87603789,0.00033397,4]
[313444672,1707352233542,-1065.54810808,0.00033397,4]
[313444673,1707352233555,-2369.50313833,0.00033397,4]
[313444674,1707352233633,-461.43417062,0.00033397,4]
[313444689,1707352234459,-1320.45702537,0.00033397,4]
[313444690,1707352234472,-2721.46652155,0.00033397,4]
[313444691,1707352234484,-2089.5226092,0.00033397,4]
[313444692,1707352234516,-13859.87524359,0.00033397,4]
[313444693,1707352234526,-19643.90163895,0.00033398,4]
[313444694,1707352234536,-42698.05217164,0.00033398,4]
[313444695,1707352234549,-8893.29477157,0.00033399,2]
[313444696,1707352234559,-12737.09261757,0.00033399,4]
[313444697,1707352234569,-49165.0528,0.000334,2]
[313444698,1707352234579,-748.58711906,0.00033497,4]
[313444699,1707352234589,-224.48768462,0.00033499,4]
[313444700,1707352234600,-534.13363385,0.00033499,4]
[313444701,1707352234609,-201.46673912,0.00033499,4]
[313444702,1707352234619,-69076.19080158,0.000335,2]
[313444703,1707352234629,-686.28,0.00033659,2]
[313444704,1707352234638,-151.58590347,0.000337,6]
[313444705,1707352234648,-183.36,0.000338,2]
[313444706,1707352234657,-183.36,0.000338,2]
[313444707,1707352234666,-183.36,0.000338,2]
[313444708,1707352234676,-183.36,0.000338,2]
[313444709,1707352234686,-183.36,0.000338,2]
[313444710,1707352234696,-183.36,0.000338,2]
[313444711,1707352234706,-183.36,0.000338,2]
[313444712,1707352234715,-183.36,0.000338,2]
[313444713,1707352234725,-183.36,0.000338,2]
[313444714,1707352234734,-183.36,0.000338,2]
[313444715,1707352234743,-183.36,0.000338,2]
[313444716,1707352234753,-183.36,0.000338,2]
[313444717,1707352234762,-183.36,0.000338,2]
[313444718,1707352234772,-183.36,0.000338,2]
[313444719,1707352234781,-183.36,0.000338,2]
[313444720,1707352234790,-183.36,0.000338,2]
[313444721,1707352234799,-183.36,0.000338,2]
[313444722,1707352234809,-183.36,0.000338,2]
[313444723,1707352234818,-183.36,0.000338,2]
[313444724,1707352234827,-156.4,0.00034023,2]
[313444725,1707352234837,-409.36,0.00034666,2]
[313444726,1707352234847,-221.30552748,0.00034855,4]
[313444727,1707352234857,-2494.0097813,0.00034855,4]
[313444728,1707352234867,-188.46860847,0.00034855,4]
[313444729,1707352234876,-156.36940979,0.00034855,4]
[313444730,1707352234886,-155.0,0.00034855,4]
[313444731,1707352234895,-155.0,0.00034855,2]
[313444732,1707352234905,-1813.68084069,0.00034855,4]
[313444733,1707352234914,-338.46264997,0.00034856,4]
[313444734,1707352234924,-155.19783312,0.00034856,4]
[313444735,1707352234933,-258.47507224,0.00034856,4]
[313444736,1707352234943,-26329.50516258,0.00034857,10]
[313444737,1707352234953,-1832.64106861,0.00034857,10]
[313444738,1707352234962,-4041.00114966,0.00034857,10]
[313444739,1707352234971,-202.05005748,0.00034857,10]
[313444740,1707352234981,-290.05366865,0.00034898,4]
[313444741,1707352234990,-156.25577456,0.00034899,4]
[313444742,1707352235000,-155.0,0.00034899,4]
[313444743,1707352235009,-600.0,0.00035,36]
[313444744,1707352235019,-3386.50271295,0.00035099,5]
[313444745,1707352235029,-1523.92622083,0.00035099,7]
[313444746,1707352235039,-1427.72701775,0.00035099,7]
[313444747,1707352235048,-467.01069079,0.00035099,3]
[313444748,1707352235062,-295.21836958,0.00035099,5]
[313444749,1707352235072,-181.36,0.00035185,2]
[313444750,1707352235082,-686.28,0.00035303,2]
[313444751,1707352235091,-150.0,0.000355,2]
[313444752,1707352235101,-576.48,0.00035616,2]
[313444753,1707352235111,-1000.0,0.0003618,2]
[313444754,1707352235121,-171.12,0.00036488,2]
[313444755,1707352235131,-409.36,0.0003693,2]
[313444756,1707352235141,-686.28,0.00036947,2]
[313444757,1707352235151,-234.0208,0.00037198,12]
[313444758,1707352235161,-1000.0,0.000373,2]
[313444759,1707352235172,-234.0208,0.00037498,12]
[313444760,1707352235182,-280.13227264,0.00037519,4]
[313444761,1707352235192,-235.86294,0.00037521,2]
[313444762,1707352235201,-150.0,0.00037588,2]
[313444763,1707352235211,-181.36,0.00037674,2]
[313444764,1707352235222,-150.0,0.0003773,2]
[313444765,1707352235232,-234.0208,0.00037798,13]
[313444766,1707352235242,-270.73610726,0.00037898,4]
[313444767,1707352235253,-4288.70259046,0.00037898,4]
[313444768,1707352235264,-4537.02199108,0.00037898,4]
[313444769,1707352235274,-162.83714396,0.00037898,4]
[313444770,1707352235287,-583.66541534,0.00037898,4]
[313444771,1707352235297,-266.46430983,0.00037898,4]
[313444772,1707352235307,-342.76188401,0.00037898,2]
[313444773,1707352235318,-200.0,0.00037898,2]
[313444774,1707352235329,-229.18896052,0.00037898,4]
[313444775,1707352235339,-578.6637511,0.00037898,4]
[313444776,1707352235352,-155.0,0.00037898,4]
[313444777,1707352235362,-265.23406397,0.00037898,4]
[313444778,1707352235372,-155.17807555,0.00037898,4]
[313444779,1707352235383,-316.90563559,0.00037898,4]
[313444780,1707352235393,-341.83071978,0.00037898,4]
[313444781,1707352235403,-203.25070225,0.00037898,4]
[313444782,1707352235414,-524.31366153,0.00037898,4]
[313444783,1707352235424,-838.53372,0.00037898,4]
[313444784,1707352235435,-314.40306534,0.00037898,4]
[313444785,1707352235446,-265.15535623,0.00037898,4]
[313444786,1707352235457,-155.4231818,0.00037898,4]
[313444787,1707352235468,-447.89292513,0.00037898,4]
[313444788,1707352235479,-1049.62997136,0.00037898,4]
[313444789,1707352235490,-2323.45228506,0.00037898,4]
[313444790,1707352235501,-487.54545682,0.00037898,4]
[313444791,1707352235511,-1060.55480173,0.00037898,2]
[313444792,1707352235521,-155.0,0.00037898,4]
[313444793,1707352235531,-1021.96607554,0.00037898,4]
[313444794,1707352235541,-474.4092373,0.00037898,4]
[313444795,1707352235550,-163.03748184,0.00037898,4]
[313444796,1707352235561,-155.63669568,0.00037898,4]
[313444797,1707352235571,-313.5325998,0.00037899,4]
[313444798,1707352235581,-2000.0,0.000379,2]
[313444799,1707352235591,-200.0,0.000379,2]
[313444800,1707352235603,-2000.0,0.000379,2]
[313444801,1707352235613,-200.0,0.000379,2]
[313444802,1707352235622,-200.0,0.000379,2]
[313444803,1707352235632,-514.66049,0.000379,2]
[313444804,1707352235644,-183.36,0.000379,3]
[313444805,1707352235654,-183.36,0.000379,3]
[313444806,1707352235663,-183.36,0.000379,3]
[313444807,1707352235674,-183.36,0.000379,3]
[313444808,1707352235684,-183.36,0.000379,3]
[313444809,1707352235694,-183.36,0.000379,3]
[313444810,1707352235705,-183.36,0.000379,3]
[313444811,1707352235714,-183.36,0.000379,3]
[313444812,1707352235724,-183.36,0.000379,3]
[313444813,1707352235734,-183.36,0.000379,3]
[313444814,1707352235743,-183.36,0.000379,3]
[313444815,1707352235753,-183.36,0.000379,3]
[313444816,1707352235763,-183.36,0.000379,3]
[313444817,1707352235773,-183.36,0.000379,3]
[313444818,1707352235783,-183.36,0.000379,3]
[313444819,1707352235793,-183.36,0.000379,3]
[313444820,1707352235803,-183.36,0.000379,3]
[313444821,1707352235813,-183.36,0.000379,3]
[313444822,1707352235823,-183.36,0.000379,3]
[313444823,1707352235834,-183.36,0.000379,3]
[313444824,1707352235845,-234.0208,0.00038198,13]
[313444825,1707352235854,-2000.0,0.00038279,2]
[313444826,1707352235863,-200.0,0.00038279,2]
[313444827,1707352235872,-2000.0,0.00038279,2]
[313444828,1707352235882,-200.0,0.00038279,2]
[313444829,1707352235892,-200.0,0.00038279,2]
[313444830,1707352235903,-151.67,0.00038356,2]
[313444831,1707352235913,-293.0208,0.00038498,13]
[313444832,1707352235923,-686.28,0.0003859,2]
[313444833,1707352235932,-2000.0,0.00038662,2]
[313444834,1707352235942,-200.0,0.00038662,2]
[313444835,1707352235952,-1881.32631759,0.00038662,2]
[313444836,1707352236002,-118.67368241,0.00038662,2]
[313444837,1707352236012,-200.0,0.00038662,2]
[313444838,1707352236022,-345.0208,0.00038798,13]
[313444839,1707352236033,-134.91535378,0.0003888,2]
[313444840,1707352236047,-165.42288818,0.0003888,2]
[313444841,1707352236056,-300.33824196,0.00038905,2]
[313444842,1707352236066,-157.64196966,0.00038973,2]
[313444843,1707352236076,-700.0,0.00039,3]
[313444844,1707352236086,-200.0,0.00039048,2]
[313444845,1707352236099,-1412.32716698,0.00039048,2]
[313444846,1707352236133,-587.67283302,0.00039048,2]
[313444847,1707352236143,-200.0,0.00039048,2]
[313444848,1707352236153,-151.58590344,0.000391,9]
[313444849,1707352236163,-221.25349588,0.00039194,2]
[313444850,1707352236175,-188.10650412,0.00039194,2]
[313444851,1707352236184,-345.0208,0.00039198,14]
[313444852,1707352236194,-540.45138807,0.00039439,2]
[313444853,1707352236206,-723.29357829,0.00039439,2]
[313444854,1707352236247,-736.25503364,0.00039439,2]